fUST/lending_fUST_20240710
["ID","MTS","AMOUNT","RATE_DAILY","PERIOD"]
[331673328,1720621838185,-225.75818488,0.00027,2]
[331673329,1720621838196,-5607.0,0.00027,2]
[331673330,1720621838207,-428.33485551,0.00027,2]
[331673331,1720621838217,-2000.0,0.00027,2]
[331673332,1720621838228,-1089.69149357,0.00027,2]
[331673334,1720621838239,-1645.49662525,0.00027074,2]
[331673335,1720621838251,-17819.14,0.00027154,3]
[331673336,1720621838262,-14849.29,0.00027154,3]
[331673337,1720621838272,-38627.8521268,0.00027164,3]
[331673338,1720621838283,-30000.0,0.00027184,2]
[331673339,1720621838293,-506.33067519,0.00027187,2]
[331673340,1720621838303,-242.009263,0.00027195,2]
[331673341,1720621838313,-500.0,0.00027397,2]
[331673342,1720621838325,-500.0,0.00027397,2]
[331673343,1720621838338,-500.0,0.00027397,2]
[331673344,1720621838349,-500.0,0.00027397,2]
[331673345,1720621838359,-500.0,0.00027397,2]
[331673346,1720621838370,-500.0,0.00027397,2]
[331673347,1720621838380,-500.0,0.00027397,2]
[331673348,1720621838390,-500.0,0.00027397,2]
[331673349,1720621838400,-500.0,0.00027397,2]
[331673350,1720621838410,-500.0,0.00027397,2]
[331673351,1720621838420,-500.0,0.00027397,2]
[331673352,1720621838431,-500.0,0.00027397,2]
[331673353,1720621838441,-500.0,0.00027397,2]
[331673354,1720621838451,-224.23404125,0.00027397,2]
[331673355,1720621838461,-500.0,0.00027397,2]
[331673356,1720621838471,-500.0,0.00027397,2]
[331673357,1720621838481,-500.0,0.00027397,2]
[331673358,1720621838491,-500.0,0.00027397,2]
[331673359,1720621838501,-500.0,0.00027397,2]
[331673360,1720621838512,-500.0,0.00027397,2]
[331673361,1720621838521,-500.0,0.00027397,2]
[331673362,1720621838532,-500.0,0.00027397,2]
[331673363,1720621838541,-500.0,0.00027397,2]
[331673364,1720621838551,-500.0,0.00027397,2]
[331673365,1720621838561,-500.0,0.00027397,2]
[331673366,1720621838571,-500.0,0.00027397,2]
[331673367,1720621838580,-500.0,0.00027397,2]
[331673368,1720621838591,-500.0,0.00027397,2]
[331673369,1720621838601,-500.0,0.00027397,2]
[331673370,1720621838611,-500.0,0.00027397,2]
[331673371,1720621838621,-500.0,0.00027397,2]
[331673372,1720621838631,-500.0,0.00027397,2]
[331673373,1720621838641,-500.0,0.00027397,2]
[331673374,1720621838652,-500.0,0.00027397,2]
[331673375,1720621838662,-644.51503688,0.00027397,2]
[331673376,1720621838672,-500.0,0.00027397,2]
[331673377,1720621838682,-500.0,0.00027397,2]
[331673378,1720621838691,-1645.49662521,0.00027722,2]
[331673379,1720621838701,-500.0,0.00028,3]
[331673380,1720621838712,-1000.0,0.00028,28]
[331673381,1720621838722,-268.65851187,0.00028,2]
[331673382,1720621838733,-665.62347543,0.000281,2]
[331673383,1720621838744,-184.6,0.00028245,2]
[331673384,1720621838754,-1645.49662521,0.0002837,2]
[331673385,1720621838764,-200.0,0.00028667,2]
[331673386,1720621838774,-4506.91903961,0.00028868,5]
[331673387,1720621838784,-88888.0,0.00028868,3]
[331673388,1720621838793,-2000.0,0.0002889,2]
[331673389,1720621838804,-38627.8521268,0.00028967,3]
[331673390,1720621838814,-115883.55638,0.00028968,3]
[331673391,1720621838825,-506.33067519,0.00028972,2]
[331673392,1720621838835,-440.05599607,0.00028977,2]
[331673393,1720621838846,-285.55627452,0.00028977,2]
[331673394,1720621838856,-500.0,0.00028977,2]
[331673395,1720621838867,-500.0,0.00028977,2]
[331673396,1720621838877,-500.0,0.00028977,2]
[331673397,1720621838887,-500.0,0.00028977,2]
[331673398,1720621838898,-500.0,0.00028977,2]
[331673399,1720621838908,-500.0,0.00028977,2]
[331673400,1720621838919,-392.94888761,0.00028977,2]
[331673401,1720621838928,-500.0,0.00028977,2]
[331673402,1720621838938,-124199.6635143,0.00028978,2]
[331673403,1720621838948,-151.0,0.00028978,7]
[331673404,1720621838958,-215.6588,0.00028978,7]
[331673405,1720621838968,-215.6588,0.00028978,7]
[331673406,1720621838979,-358.56522,0.00028978,7]
[331673407,1720621838988,-358.56522,0.00028978,7]
[331673408,1720621838999,-155.34845,0.00028978,7]
[331673409,1720621839010,-151.0,0.00028978,7]
[331673410,1720621839020,-151.0,0.00028978,7]
[331673411,1720621839031,-77255.7042535,0.0002899,3]
[331673412,1720621839041,-500.0,0.00029,3]
[331673413,1720621839051,-1000.0,0.00029,29]
[331673414,1720621839062,-633.374197,0.00029,7]
[331673415,1720621839075,-633.374197,0.00029,7]
[331673416,1720621839086,-151.0,0.00029,7]
[331673417,1720621839096,-155.36732,0.00029,7]
[331673418,1720621839110,-215.6588,0.00029,7]
[331673419,1720621839121,-215.6588,0.00029,7]
[331673420,1720621839131,-358.56522,0.00029,7]
[331673421,1720621839142,-358.56522,0.00029,7]
[331673422,1720621839153,-151.0,0.00029,7]
[331673423,1720621839163,-151.0,0.00029,7]
[331673424,1720621839172,-1645.49662521,0.00029017,2]
[331673425,1720621839183,-184.6,0.00029174,3]
[331673426,1720621839194,-5292.88975486,0.00029621,2]
[331673427,1720621839205,-1645.49662521,0.00029665,2]
[331673428,1720621839216,-500.0,0.00029683,7]
[331673429,1720621839226,-337.02866846,0.00029772,2]
[331673430,1720621839236,-366.6405652,0.00029789,2]
[331673431,1720621839246,-2000.0,0.000298,2]
[331673432,1720621839256,-500.0,0.0002989,2]
[331673434,1720621839267,-468.05129613,0.00029979,2]
[331673435,1720621839277,-170.47875529,0.0003,4]
[331673436,1720621839287,-643.66349447,0.0003,4]
[331673437,1720621839296,-373.0,0.0003,2]
[331673438,1720621839306,-2500.0,0.0003,2]
[331673439,1720621839316,-3256.50210657,0.0003,2]
[331673440,1720621839328,-299.40583363,0.0003,3]
[331673441,1720621839341,-1000.0,0.0003,30]
[331673442,1720621839351,-150.0,0.0003,2]
[331673443,1720621839362,-305.755912,0.0003,30]
[331673444,1720621839373,-1003.764437,0.0003,2]
[331673445,1720621839383,-207.0,0.0003,2]
[331673446,1720621839394,-400.0,0.00030037,2]
[331673447,1720621839404,-161.0,0.0003005,18]
[331673448,1720621839414,-184.6,0.00030103,3]
[331673449,1720621839424,-306.0,0.00030219,2]
[331673450,1720621839434,-153.0,0.00030219,2]
[331673451,1720621839444,-153.0,0.00030219,2]
[331673452,1720621839454,-153.0,0.00030219,2]
[331673453,1720621839464,-153.0,0.00030219,2]
[331673454,1720621839474,-306.0,0.00030219,2]
[331673455,1720621839484,-306.0,0.00030219,2]
[331673457,1720621839494,-306.0,0.00030219,2]
[331673460,1720621839504,-153.0,0.00030219,2]
[331673463,1720621839514,-153.0,0.00030219,2]
[331673466,1720621839524,-153.0,0.00030219,2]
[331673471,1720621839535,-153.0,0.00030219,2]
[331673473,1720621839545,-153.0,0.00030219,2]
[331673476,1720621839557,-153.0,0.00030219,2]
[331673478,1720621839567,-153.0,0.00030219,2]
[331673480,1720621839581,-153.0,0.00030219,2]
[331673483,1720621839591,-307.9664816,0.00030219,2]
[331673485,1720621839600,-153.0,0.00030219,2]
[331673488,1720621839610,-153.0,0.00030219,2]
[331673490,1720621839620,-153.0,0.00030219,2]
[331673492,1720621839630,-153.0,0.00030219,2]
[331673494,1720621839640,-153.0,0.00030219,2]
[331673496,1720621839650,-153.0,0.00030219,2]
[331673498,1720621839662,-153.0,0.00030219,2]
[331673500,1720621839671,-153.0,0.00030219,2]
[331673502,1720621839682,-153.0,0.00030219,2]
[331673504,1720621839692,-166.04349824,0.00030229,4]
[331673506,1720621839702,-154.28069495,0.00030579,2]
[331673508,1720621839711,-150.0,0.0003072,2]
[331673510,1720621839721,-506.33067519,0.00030758,2]
[331673512,1720621839732,-284.6000077,0.0003091,3]
[331673513,1720621839743,-5611.49557264,0.0003091,4]
[331673514,1720621839752,-185.061864,0.0003091,7]
[331673515,1720621839762,-185.061864,0.0003091,7]
[331673516,1720621839772,-770.540366,0.0003091,7]
[331673517,1720621839782,-151.0,0.0003091,7]
[331673518,1720621839792,-770.540366,0.0003091,7]
[331673519,1720621839802,-231.32587,0.0003091,7]
[331673520,1720621839812,-231.32587,0.0003091,7]
[331673521,1720621839826,-2964.851376,0.0003091,7]
[331673522,1720621839836,-2964.851376,0.0003091,7]
[331673523,1720621839846,-204.652162,0.0003091,7]
[331673524,1720621839856,-151.0,0.0003091,7]
[331673525,1720621839866,-151.0,0.0003091,7]
[331673526,1720621839876,-271.153039,0.0003091,7]
[331673527,1720621839885,-3127.064636,0.0003091,7]
[331673528,1720621839895,-271.153039,0.0003091,7]
[331673529,1720621839905,-3127.064636,0.0003091,7]
[331673530,1720621839914,-504.87786538,0.00031,3]
[331673531,1720621839923,-2017.19014062,0.00031,120]
[331673533,1720621839932,-5000.0,0.00031,31]
[331673534,1720621839942,-150.0,0.00031,2]
[331673536,1720621839951,-184.6,0.00031032,4]
[331673538,1720621839960,-299.73704716,0.00031251,4]
[331673556,1720621840129,-7443.34082226,0.00027144,3]
[331673558,1720621840142,-4931.05917774,0.00027144,3]
[331673560,1720621840152,-835.05153819,0.00031251,4]
[331673562,1720621840162,-153.0,0.00031315,2]
[331673564,1720621840171,-153.0,0.00031315,2]
[331673567,1720621840182,-153.0,0.00031315,2]
[331673569,1720621840191,-153.0,0.00031315,2]
[331673571,1720621840201,-153.0,0.00031315,2]
[331673573,1720621840211,-153.0,0.00031315,2]
[331673575,1720621840220,-153.0,0.00031315,2]
[331673577,1720621840230,-153.0,0.00031315,2]
[331673579,1720621840239,-167.0,0.000315,6]
[331673581,1720621840250,-150.0,0.00031579,2]
[331673583,1720621840260,-151.0,0.0003169,7]
[331673585,1720621840270,-159.012451,0.0003169,7]
[331673587,1720621840280,-151.0,0.000317,7]
[331673589,1720621840289,-151.0,0.000317,7]
[331673591,1720621840299,-151.0,0.000317,7]
[331673593,1720621840308,-151.0,0.000317,7]
[331673595,1720621840318,-204.217134,0.000317,2]
[331673607,1720621840435,-204.217134,0.000317,2]
[331673609,1720621840448,-185.061864,0.000317,7]
[331673611,1720621840458,-185.061864,0.000317,7]
[331673613,1720621840468,-770.540366,0.000317,7]
[331673615,1720621840480,-151.0,0.000317,7]
[331673617,1720621840490,-770.540366,0.000317,7]
[331673619,1720621840499,-231.32587,0.000317,7]
[331673621,1720621840508,-231.32587,0.000317,7]
[331673623,1720621840518,-2964.851376,0.000317,7]
[331673625,1720621840527,-2964.851376,0.000317,7]
[331673627,1720621840536,-151.0,0.000317,7]
[331673629,1720621840547,-151.0,0.000317,7]
[331673631,1720621840556,-633.374197,0.000317,7]
[331673633,1720621840566,-271.153039,0.000317,7]
[331673635,1720621840579,-3127.064636,0.000317,7]
[331673637,1720621840589,-633.374197,0.000317,7]
[331673639,1720621840599,-167.650171,0.000317,7]
[331673641,1720621840608,-3127.064636,0.000317,7]
[331673643,1720621840618,-271.153039,0.000317,7]
[331673645,1720621840628,-215.6588,0.000317,7]
[331673647,1720621840637,-215.6588,0.000317,7]
[331673649,1720621840646,-358.56522,0.000317,7]
[331673651,1720621840655,-358.56522,0.000317,7]
[331673652,1720621840665,-151.0,0.000317,7]
[331673654,1720621840675,-151.0,0.0003179,7]
[331673656,1720621840685,-29352.41411742,0.000318,5]
[331673658,1720621840694,-167995.11630994,0.000318,3]
[331673660,1720621840703,-151.0,0.000318,7]
[331673662,1720621840713,-224.018547,0.000318,7]
[331673664,1720621840724,-151.0,0.000318,7]
[331673667,1720621840736,-224.018547,0.000318,7]
[331673669,1720621840746,-151.0,0.000318,7]
[331673671,1720621840756,-151.0,0.000318,7]
[331673673,1720621840766,-151.0,0.000318,7]
[331673674,1720621840776,-151.0,0.000318,7]
[331673677,1720621840786,-151.0,0.000318,7]
[331673679,1720621840796,-204.217134,0.000318,2]
[331673681,1720621840806,-204.217134,0.000318,2]
[331673683,1720621840816,-185.061864,0.000318,7]
[331673685,1720621840829,-185.061864,0.000318,7]
[331673687,1720621840838,-770.540366,0.000318,7]
[331673688,1720621840848,-151.0,0.000318,7]
[331673690,1720621840857,-770.540366,0.000318,7]
[331673692,1720621840866,-231.32587,0.000318,7]
[331673694,1720621840875,-231.32587,0.000318,7]
[331673696,1720621840884,-2964.851376,0.000318,7]
[331673698,1720621840894,-2964.851376,0.000318,7]
[331673700,1720621840903,-151.0,0.000318,7]
[331673702,1720621840912,-151.0,0.000318,7]
[331673704,1720621840922,-633.374197,0.000318,7]
[331673706,1720621840931,-271.153039,0.000318,7]
[331673708,1720621840941,-3127.064636,0.000318,7]
[331673710,1720621840950,-633.374197,0.000318,7]
[331673712,1720621840959,-3127.064636,0.000318,7]
[331673714,1720621840969,-271.153039,0.000318,7]
[331673716,1720621840978,-215.6588,0.000318,7]
[331673718,1720621840988,-215.6588,0.000318,7]
[331673720,1720621840997,-358.56522,0.000318,7]
[331673722,1720621841007,-358.56522,0.000318,7]
[331673724,1720621841016,-151.0,0.000318,7]
[331673726,1720621841025,-151.0,0.000318,7]
[331673728,1720621841035,-600.0,0.00031814,2]
[331673730,1720621841044,-262.616,0.00031823,2]
[331673732,1720621841053,-358.0,0.00031823,2]
[331673734,1720621841063,-1406.0,0.00031823,2]
[331673736,1720621841075,-184.6,0.00031962,4]
[331673738,1720621841085,-774.96860487,0.00032,3]
[331673740,1720621841095,-300.0,0.00032,120]
[331673742,1720621841104,-500.38242698,0.00032,30]
[331673744,1720621841113,-1000.0,0.00032,32]
[331673746,1720621841123,-478.22272388,0.00032229,4]
[331673748,1720621841133,-500.0,0.00032284,120]
[331673750,1720621841143,-443.96,0.00032284,120]
[331673752,1720621841153,-3115.36066484,0.000325,60]
[331673754,1720621841163,-506.33067519,0.00032543,2]
[331673756,1720621841173,-150.0,0.00032579,2]
[331673758,1720621841184,-233.218,0.00032668,2]
[331673760,1720621841194,-164.371,0.00032669,2]
[331673762,1720621841204,-250.0,0.00032669,2]
[331673764,1720621841213,-392.10595593,0.00032727,4]
[331673766,1720621841223,-518.07029447,0.00032727,30]
[331673768,1720621841232,-11077.25610598,0.00032727,4]
[331673770,1720621841243,-953.04201173,0.00032727,4]
[331673772,1720621841253,-359.022362,0.00032727,4]
[331673774,1720621841263,-305.87646812,0.00032727,4]
[331673776,1720621841272,-160.0,0.00032754,3]
[331673778,1720621841282,-500.0,0.00032877,7]
[331673780,1720621841291,-500.0,0.00032877,7]
[331673782,1720621841301,-500.0,0.00032877,7]
[331673784,1720621841310,-500.0,0.00032877,7]
[331673786,1720621841324,-500.0,0.00032877,7]
[331673788,1720621841335,-177.655455,0.00032877,7]
[331673790,1720621841346,-150.0,0.00032877,2]
[331673792,1720621841355,-184.6,0.00032891,5]
[331673794,1720621841365,-153.0,0.00032959,2]
[331673796,1720621841374,-153.0,0.00032959,2]
[331673798,1720621841384,-153.0,0.00032959,2]
[331673800,1720621841394,-292.55335768,0.00033,7]
[331673802,1720621841404,-500.0,0.00033,3]
[331673804,1720621841413,-500.0,0.00033,2]
[331673806,1720621841422,-500.0,0.00033,2]
[331673808,1720621841432,-500.0,0.00033,2]
[331673810,1720621841442,-366.48323855,0.00033,120]
[331673812,1720621841451,-1000.0,0.00033,33]
[331673814,1720621841460,-207.0,0.00033,2]
[331673816,1720621841471,-207.0,0.00033,2]
[331673818,1720621841480,-130498.39820719,0.00033123,2]
[331673820,1720621841490,-151.0,0.00033123,7]
[331673822,1720621841499,-194.626993,0.00033123,7]
[331673824,1720621841508,-501.964895,0.00033123,7]
[331673826,1720621841517,-501.964895,0.00033123,7]
[331673828,1720621841528,-163.177901,0.00033123,7]
[331673830,1720621841537,-224.018547,0.00033123,7]
[331673832,1720621841546,-151.0,0.00033123,7]
[331673834,1720621841556,-224.018547,0.00033123,7]
[331673836,1720621841565,-151.0,0.00033123,7]
[331673838,1720621841578,-151.0,0.00033123,7]
[331673840,1720621841588,-151.0,0.00033123,7]
[331673842,1720621841598,-204.217134,0.00033123,2]
[331673843,1720621841607,-204.217134,0.00033123,2]
[331673845,1720621841616,-185.061864,0.00033123,7]
[331673847,1720621841626,-185.061864,0.00033123,7]
[331673849,1720621841636,-770.540366,0.00033123,7]
[331673851,1720621841644,-151.0,0.00033123,7]
[331673853,1720621841654,-770.540366,0.00033123,7]
[331673855,1720621841663,-231.32587,0.00033123,7]
[331673857,1720621841673,-231.32587,0.00033123,7]
[331673859,1720621841683,-2964.851376,0.00033123,7]
[331673861,1720621841692,-2964.851376,0.00033123,7]
[331673863,1720621841701,-151.0,0.00033123,7]
[331673865,1720621841711,-151.0,0.00033123,7]
[331673867,1720621841721,-633.374197,0.00033123,7]
[331673869,1720621841730,-271.153039,0.00033123,7]
[331673871,1720621841741,-3127.064636,0.00033123,7]
[331673873,1720621841751,-633.374197,0.00033123,7]
[331673875,1720621841761,-3127.064636,0.00033123,7]
[331673877,1720621841770,-271.153039,0.00033123,7]
[331673879,1720621841779,-500.030685,0.00033123,14]
[331673881,1720621841790,-215.6588,0.00033123,7]
[331673883,1720621841800,-215.6588,0.00033123,7]
[331673885,1720621841809,-358.56522,0.00033123,7]
[331673887,1720621841819,-358.56522,0.00033123,7]
[331673889,1720621841832,-151.0,0.00033123,7]
[331673891,1720621841842,-151.0,0.00033123,7]
[331673893,1720621841851,-350.0,0.000332,30]
[331673895,1720621841860,-242.009263,0.00033295,2]
[331673897,1720621841870,-160.0,0.00033328,4]
[331673899,1720621841879,-43888.37029548,0.00033333,2]
[331673901,1720621841889,-153.0,0.00033507,2]
[331673903,1720621841898,-153.0,0.00033507,2]
[331673905,1720621841907,-153.0,0.00033507,2]
[331673907,1720621841917,-153.0,0.00033507,2]
[331673909,1720621841926,-150.0,0.00033579,2]
[331673911,1720621841935,-800.0,0.00033786,2]
[331673913,1720621841945,-314.46226792,0.00033799,2]
[331673915,1720621841954,-19858.86303144,0.000338,2]
[331673971,1720621843198,-5210.0005731,0.00029999,2]
[331673972,1720621843207,-154.83806341,0.00033292,4]
[331673973,1720621843217,-154.98829389,0.00033597,2]
[331673974,1720621843226,-4572.49369953,0.000338,2]
[331673978,1720621843329,-591.2931009,0.000338,2]
[331674103,1720623032056,-217.808337,0.00021096,2]
[331674104,1720623032065,-166.666666,0.0002486,2]
[331674105,1720623032074,-300.0,0.000255,2]
[331674106,1720623032084,-9.84205127,0.00025501,2]
[331674108,1720623032096,-669.73923182,0.00025501,2]
[331674111,1720623032108,-622.0,0.00025501,2]
[331674136,1720623038186,-50840.43114444,0.00025501,2]
[331674137,1720623038197,-757.17392649,0.00027084,2]
[331674138,1720623038207,-30000.0,0.00027184,2]
[331674139,1720623038217,-201.00821583,0.00027184,2]
[331674140,1720623038228,-217.808337,0.00027195,2]
[331674141,1720623038238,-599.14160025,0.00027999,2]
[331674142,1720623038248,-240.12803383,0.00027999,2]
[331674143,1720623038259,-9621.97492075,0.00027999,2]
[331674144,1720623038270,-1000.0,0.00028,28]
[331674145,1720623038280,-299.40583462,0.00028,3]
[331674146,1720623038290,-229.31696231,0.00028,30]
[331674147,1720623038300,-166.666666,0.00028249,2]
[331674148,1720623038309,-151.8,0.00028353,2]
[331674149,1720623038319,-798.78016452,0.000285,2]
[331674150,1720623038329,-757.17392645,0.00028629,2]
[331674151,1720623038338,-13928.08,0.00028649,3]
[331674152,1720623038351,-2000.0,0.0002865,2]
[331674153,1720623038362,-658.1986501,0.00028659,2]
[331674154,1720623038372,-658.19865008,0.00028719,2]
[331674155,1720623038382,-59747.4255438,0.00028757,3]
[331674156,1720623038392,-500.0,0.00028758,2]
[331674157,1720623038402,-500.0,0.00028758,2]
[331674158,1720623038412,-500.0,0.00028758,2]
[331674159,1720623038422,-500.0,0.00028758,2]
[331674160,1720623038432,-500.0,0.00028758,2]
[331674161,1720623038443,-500.0,0.00028758,2]
[331674162,1720623038452,-500.0,0.00028758,2]
[331674163,1720623038462,-500.0,0.00028758,2]
[331674164,1720623038472,-500.0,0.00028758,2]
[331674165,1720623038483,-500.0,0.00028758,2]
[331674166,1720623038493,-500.0,0.00028758,2]
[331674167,1720623038503,-500.0,0.00028758,2]
[331674168,1720623038513,-500.0,0.00028758,2]
[331674169,1720623038523,-500.0,0.00028758,2]
[331674170,1720623038533,-224.23404125,0.00028758,2]
[331674171,1720623038543,-500.0,0.00028758,2]
[331674172,1720623038554,-500.0,0.00028758,2]
[331674173,1720623038564,-500.0,0.00028758,2]
[331674174,1720623038574,-500.0,0.00028758,2]
[331674175,1720623038584,-500.0,0.00028758,2]
[331674176,1720623038596,-500.0,0.00028758,2]
[331674177,1720623038606,-500.0,0.00028758,2]
[331674178,1720623038616,-500.0,0.00028758,2]
[331674179,1720623038627,-500.0,0.00028758,2]
[331674180,1720623038637,-500.0,0.00028758,2]
[331674181,1720623038647,-500.0,0.00028758,2]
[331674182,1720623038657,-500.0,0.00028758,2]
[331674183,1720623038667,-500.0,0.00028758,2]
[331674184,1720623038677,-500.0,0.00028758,2]
[331674185,1720623038687,-583.75147219,0.00028758,2]
[331674186,1720623038697,-500.0,0.00028758,2]
[331674187,1720623038707,-500.0,0.00028758,2]
[331674188,1720623038717,-500.0,0.00028758,2]
[331674189,1720623038727,-500.0,0.00028758,2]
[331674190,1720623038736,-500.0,0.00028758,2]
[331674191,1720623038747,-500.0,0.00028758,2]
[331674192,1720623038757,-500.0,0.00028758,2]
[331674193,1720623038767,-500.0,0.00028758,2]
[331674194,1720623038778,-500.0,0.00028758,2]
[331674195,1720623038789,-500.0,0.00028758,2]
[331674196,1720623038799,-500.0,0.00028758,2]
[331674197,1720623038810,-500.0,0.00028758,2]
[331674198,1720623038820,-500.0,0.00028758,2]
[331674199,1720623038830,-500.0,0.00028758,2]
[331674200,1720623038840,-500.0,0.00028758,2]
[331674201,1720623038852,-500.0,0.00028758,2]
[331674202,1720623038864,-500.0,0.00028758,2]
[331674203,1720623038874,-500.0,0.00028758,2]
[331674204,1720623038885,-500.0,0.00028758,2]
[331674205,1720623038895,-12018.45077229,0.00028759,5]
[331674206,1720623038906,-238989.702175,0.0002876,3]
[331674207,1720623038916,-5312.17017604,0.00028767,2]
[331674208,1720623038927,-163.74496817,0.00028769,2]
[331674209,1720623038936,-500.0,0.00028769,2]
[331674210,1720623038947,-500.0,0.00028769,2]
[331674211,1720623038958,-440.05599607,0.00028769,2]
[331674212,1720623038968,-500.0,0.00028769,2]
[331674213,1720623038978,-500.0,0.00028769,2]
[331674214,1720623038988,-285.55627452,0.00028769,2]
[331674215,1720623038999,-500.0,0.00028769,2]
[331674216,1720623039009,-392.94888761,0.00028769,2]
[331674217,1720623039019,-500.0,0.00028769,2]
[331674218,1720623039029,-500.0,0.00028769,2]
[331674219,1720623039040,-500.0,0.00028769,2]
[331674220,1720623039050,-189993.14075565,0.0002877,2]
[331674221,1720623039060,-658.19865008,0.0002878,2]
[331674222,1720623039201,-200.0,0.00028836,2]
[331674223,1720623039213,-658.19865008,0.0002884,2]
[331674224,1720623039225,-658.19865008,0.000289,2]
[331674225,1720623039236,-59747.4255438,0.0002899,3]
[331674226,1720623039246,-100000.0,0.00029,2]
[331674227,1720623039256,-500.0,0.00029,3]
[331674228,1720623039266,-849.45020334,0.00029,2]
[331674229,1720623039276,-160.358734,0.00029,7]
[331674230,1720623039287,-172.52704,0.00029,7]
[331674231,1720623039297,-172.52704,0.00029,7]
[331674232,1720623039307,-151.0,0.00029,7]
[331674233,1720623039316,-151.0,0.00029,7]
[331674234,1720623039327,-151.8,0.00029272,3]
[331674235,1720623039336,-57029.74831702,0.00029765,2]
[331674236,1720623039475,-27341.6997859,0.00029765,2]
[331674268,1720623040310,-6724.5212376,0.00029765,2]
[331674270,1720623040320,-151.0,0.00029765,7]
[331674272,1720623040329,-155.34845,0.00029765,7]
[331674274,1720623040339,-151.0,0.00029765,7]
[331674276,1720623040351,-151.0,0.00029765,2]
[331674278,1720623040361,-151.0,0.00029765,2]
[331674280,1720623040370,-2371.881101,0.00029765,7]
[331674282,1720623040380,-2371.881101,0.00029765,7]
[331674284,1720623040389,-506.699357,0.00029765,7]
[331674286,1720623040399,-506.699357,0.00029765,7]
[331674288,1720623040408,-185.060696,0.00029765,7]
[331674290,1720623040418,-185.060696,0.00029765,7]
[331674292,1720623040427,-204.652162,0.00029765,7]
[331674294,1720623040436,-151.0,0.00029765,7]
[331674296,1720623040447,-151.0,0.00029765,7]
[331674297,1720623040457,-616.432293,0.00029765,7]
[331674299,1720623040466,-151.0,0.00029765,7]
[331674301,1720623040475,-616.432293,0.00029765,7]
[331674303,1720623040484,-151.0,0.00029765,7]
[331674305,1720623040493,-577.259629,0.00029765,7]
[331674307,1720623040503,-577.259629,0.00029765,7]
[331674309,1720623040512,-248.95340007,0.000298,120]
[331674311,1720623040521,-360.0,0.0002987,2]
[331674313,1720623040530,-191.16817144,0.00029879,2]
[331674315,1720623040540,-159.72145129,0.00029901,2]
[331674317,1720623040550,-10716.90726215,0.00029903,2]
[331674319,1720623040560,-500.0,0.0003,3]
[331674321,1720623040569,-170.47875529,0.0003,4]
[331674322,1720623040578,-753.06028908,0.0003,2]
[331674323,1720623040587,-242.0,0.0003,2]
[331674325,1720623040598,-757.17392645,0.00030174,2]
[331674327,1720623040607,-151.8,0.00030191,3]
[331674329,1720623040616,-400.0,0.00030206,2]
[331674330,1720623040624,-500.0,0.00031,3]
[331674332,1720623040634,-151.8,0.00031111,4]
[331674334,1720623040643,-161.0,0.0003126,20]
[331674336,1720623040652,-757.17392645,0.00031719,2]
[331674338,1720623040661,-150.0,0.00031873,2]
[331674340,1720623040672,-1423.289,0.00031873,2]